[Event "FIDE WYCC Girls U18 2023"]
[Site "Montesilvano"]
[Date "2023.11.24"]
[Round "11.24"]
[White "Katter, Katharina"]
[Black "Sasvatha A"]
[Result "1-0"]
[ECO "E11"]
[WhiteElo "1887"]
[BlackElo "1568"]
[Annotator "NA RC"]
[PlyCount "163"]
[EventDate "2023.11.13"]
[EventType "swiss"]
[EventCountry "ITA"]
[SourceTitle "playchess.com"]
[Source "ChessBase"]
[SourceQuality "1"]
[TimeControl "40/5400+30:1800+30"]

1. d4 {[%emt 0:01:56]} Nf6 {[%emt 0:00:04]} 2. Nf3 {[%emt 0:00:13]} e6 {[%emt 0:00:32]} 3. c4 {[%emt 0:00:13]} Bb4+ {[%emt 0:00:05]} 4. Bd2 {[%emt 0:00:13]} a5 {[%emt 0:01:00]} 5. g3 {[%emt 0:00:11]} d5 {[%emt 0:00:08]} 6. Qc2 {[%emt 0:00:29]} Nc6 {[%emt 0:01:14]} 7. Bg2 {[%emt 0:01:17]} Ne4 {[%emt 0:00:44]} 8. Bxb4 {[%emt 0:04:34]} Nxb4 {[%emt 0:01:49]} 9. Qb3 {[%emt 0:01:01]} c5 {[%emt 0:05:34]} 10. a3 {[%emt 0:04:58]} a4 {[%emt 0:01:12]} 11. Qd1 {[%emt 0:00:10]} Nc6 {[%emt 0:00:06]} 12. cxd5 {[%emt 0:03:39]} exd5 {[%emt 0:00:15]} 13. dxc5 {[%emt 0:04:08]} Nxc5 {[%emt 0:00:53]} 14. Nbd2 {[%emt 0:00:30]} Bf5 {[%emt 0:01:43]} 15. O-O {[%emt 0:05:51]} O-O {[%emt 0:02:21]} 16. b4 {[%emt 0:02:07]} Ne4 {[%emt 0:05:26]} 17. Nxe4 {[%emt 0:08:48]} Bxe4 {[%emt 0:00:59]} 18. Nd4 {[%emt 0:00:57]} Ne5 {[%emt 0:00:58]} 19. Rc1 {[%emt 0:03:37]} Qd7 {[%emt 0:05:02]} 20. Rc5 {[%emt 0:09:08]} Ng6 {[%emt 0:00:44]} 21. f3 {[%emt 0:01:55]} b6 {[%emt 0:01:45]} 22. Rb5 {[%emt 0:05:43]} Bf5 {[%emt 0:00:36]} 23. Rxb6 {[%emt 0:01:28]} Qa7 {[%emt 0:06:02]} 24. Rb5 {[%emt 0:01:45]} Ne5 {[%emt 0:02:43]} 25. Kh1 {[%emt 0:04:29]} Be6 {[%emt 0:00:47]} 26. Ra5 {[%emt 0:04:39]} Qb6 {[%emt 0:04:33]} 27. Nxe6 {[%emt 0:01:08]} fxe6 {[%emt 0:00:06]} 28. Qxa4 {[%emt 0:00:24]} Rxa5 {[%emt 0:00:40]} 29. bxa5 {[%emt 0:00:32]} Qa6 {[%emt 0:00:28]} 30. Re1 {[%emt 0:01:10]} Ra8 {[%emt 0:03:40]} 31. Bh3 {[%emt 0:01:24]} Ng6 {[%emt 0:08:58]} 32. Qb4 {[%emt 0:10:33]} Nf8 {[%emt 0:00:42]} 33. Kg2 {[%emt 0:01:03]} Qxa5 {[%emt 0:00:27]} 34. Qxa5 {[%emt 0:00:10]} Rxa5 {[%emt 0:00:07]} 35. Ra1 {[%emt 0:00:07]} Kf7 {[%emt 0:00:06]} 36. Kf2 {[%emt 0:00:25]} Nd7 {[%emt 0:00:24]} 37. e3 {[%emt 0:01:34]} Ne5 {[%emt 0:01:05]} 38. Bf1 {[%emt 0:00:22]} Ke7 {[%emt 0:00:24]} 39. a4 {[%emt 0:01:21]} Kd6 {[%emt 0:00:29]} 40. Bb5 {[%emt 0:00:00]} Nc4 {[%emt 0:00:00]} 41. f4 {[%emt 0:06:29]} Kc5 {[%emt 0:00:54]} 42. Ke2 {[%emt 0:01:18]} Ra7 {[%emt 0:02:06]} 43. Rc1 {[%emt 0:00:59]} Kb4 {[%emt 0:01:00]} 44. Kd3 {[%emt 0:01:43]} Nd6 {[%emt 0:03:35]} 45. Kd4 {[%emt 0:05:52]} Nf5+ {[%emt 0:00:12]} 46. Ke5 {[%emt 0:02:16]} Nxe3 {[%emt 0:00:19]} 47. Kxe6 {[%emt 0:00:20]} h6 {[%emt 0:01:07]} 48. h3 {[%emt 0:05:32]} d4 {[%emt 0:05:48]} 49. Ke5 {[%emt 0:03:20]} Re7+ {[%emt 0:00:09]} 50. Kxd4 {[%emt 0:01:18]} Nf5+ {[%emt 0:00:17]} 51. Kd5 {[%emt 0:00:30]} Nxg3 {[%emt 0:00:22]} 52. Rc4+ {[%emt 0:01:00]} Ka5 {[%emt 0:00:20]} 53. Rc6 {[%emt 0:02:32]} Nh5 {[%emt 0:00:47]} 54. Kc5 {[%emt 0:01:20]} Ra7 {[%emt 0:00:48]} 55. f5 {[%emt 0:00:32]} Ng3 {[%emt 0:00:51]} 56. Bd3 {[%emt 0:07:13]} Kxa4 {[%emt 0:00:25]} 57. f6 {[%emt 0:00:43]} gxf6 {[%emt 0:02:43]} 58. Rxf6 {[%emt 0:00:28]} Rc7+ {[%emt 0:00:54]} 59. Kd4 {[%emt 0:01:19]} Nh5 {[%emt 0:05:20]} 60. Rxh6 {[%emt 0:00:34]} Nf4 {[%emt 0:00:05]} 61. Be4 {[%emt 0:01:29]} Nxh3 {[%emt 0:00:51]} 62. Rxh3 {[%emt 0:00:10]} Kb4 {[%emt 0:00:40]} 63. Bd5 {[%emt 0:00:32]} Rc1 {[%emt 0:00:34]} 64. Rb3+ {[%emt 0:00:25]} Ka4 {[%emt 0:00:35]} 65. Rb8 {[%emt 0:01:04]} Ka3 {[%emt 0:00:38]} 66. Bc4 {[%emt 0:01:20]} Rd1+ {[%emt 0:01:33]} 67. Bd3 {[%emt 0:00:16]} Rc1 {[%emt 0:00:33]} 68. Rb7 {[%emt 0:00:59]} Ka2 {[%emt 0:02:21]} 69. Ke3 {[%emt 0:00:59]} Rc8 {[%emt 0:01:42]} 70. Kd2 {[%emt 0:00:40]} Ka3 {[%emt 0:01:26]} 71. Bc2 {[%emt 0:00:26]} Rd8+ {[%emt 0:00:16]} 72. Kc1 {[%emt 0:00:20]} Rh8 {[%emt 0:00:26]} 73. Rb3+ {[%emt 0:00:25]} Ka2 {[%emt 0:00:10]} 74. Rb4 {[%emt 0:01:19]} Ra8 {[%emt 0:03:33]} 75. Rb2+ {[%emt 0:00:23]} Ka3 {[%emt 0:00:36]} 76. Rb1 {[%emt 0:00:16]} Rh8 {[%emt 0:00:23]} 77. Rb3+ {[%emt 0:00:55]} Ka2 {[%emt 0:00:06]} 78. Rc3 {[%emt 0:01:30]} Rh1+ {[%emt 0:00:58]} 79. Bd1 {[%emt 0:00:06]} Rh8 {[%emt 0:00:22]} 80. Bf3 {[%emt 0:01:07]} Rd8 {[%emt 0:00:47]} 81. Kc2 {[%emt 0:00:41]} Rd6 {[%emt 0:00:33]} 82. Be2 {[%emt 0:01:07]} 1-0

[Event "FIDE WYCC Girls U18 2023"]
[Site "Montesilvano"]
[Date "2023.11.24"]
[Round "11.25"]
[White "Oviedo Acosta, Paula"]
[Black "Egger, Stefanie"]
[Result "1-0"]
[ECO "B40"]
[WhiteElo "1639"]
[BlackElo "1784"]
[Annotator "NA"]
[PlyCount "117"]
[EventDate "2023.11.13"]
[EventType "swiss"]
[EventCountry "ITA"]
[SourceTitle "playchess.com"]
[Source "ChessBase"]
[SourceQuality "1"]
[TimeControl "40/5400+30:1800+30"]

1. e4 {[%emt 0:01:21]} c5 {[%emt 0:00:12]} 2. Nf3 {[%emt 0:01:21]} e6 {[%emt 0:00:05]} 3. c4 {[%emt 0:01:39]} a6 {[%emt 0:01:59]} 4. Nc3 {[%emt 0:00:30]} Nc6 {[%emt 0:00:40]} 5. d4 {[%emt 0:00:25]} cxd4 {[%emt 0:00:31]} 6. Nxd4 {[%emt 0:00:10]} Qc7 {[%emt 0:00:24]} 7. Be2 {[%emt 0:05:31]} Nf6 {[%emt 0:01:15]} 8. a3 {[%emt 0:03:11]} Bc5 {[%emt 0:15:01]} 9. Be3 {[%emt 0:04:46]} d6 {[%emt 0:03:28]} 10. O-O {[%emt 0:02:46]} O-O {[%emt 0:02:14]} 11. Kh1 {[%emt 0:03:40]} e5 {[%emt 0:02:32]} 12. Nc2 {[%emt 0:01:16]} Bxe3 {[%emt 0:06:58]} 13. Nxe3 {[%emt 0:00:50]} Ne7 {[%emt 0:00:58]} 14. Rc1 {[%emt 0:05:48]} Kh8 {[%emt 0:05:55]} 15. Qd3 {[%emt 0:04:08]} Ne8 {[%emt 0:02:56]} 16. Ned5 {[%emt 0:01:23]} Nxd5 {[%emt 0:01:49]} 17. Nxd5 {[%emt 0:00:18]} Qd8 {[%emt 0:00:45]} 18. f4 {[%emt 0:03:29]} Bd7 {[%emt 0:10:35]} 19. f5 {[%emt 0:04:01]} Nf6 {[%emt 0:02:47]} 20. Nc3 {[%emt 0:03:05]} Bc6 {[%emt 0:00:49]} 21. g4 {[%emt 0:00:16]} Ne8 {[%emt 0:03:27]} 22. Qe3 {[%emt 0:02:29]} f6 {[%emt 0:00:55]} 23. h4 {[%emt 0:00:14]} Qe7 {[%emt 0:04:52]} 24. g5 {[%emt 0:05:13]} Rd8 {[%emt 0:00:31]} 25. Rcd1 {[%emt 0:05:23]} Qc7 {[%emt 0:02:26]} 26. Rd2 {[%emt 0:02:39]} b6 {[%emt 0:02:26]} 27. Bh5 {[%emt 0:02:17]} Kg8 {[%emt 0:02:06]} 28. Rg1 {[%emt 0:01:14]} Kh8 {[%emt 0:00:46]} 29. Rdg2 {[%emt 0:01:10]} Rd7 {[%emt 0:01:16]} 30. Qg3 {[%emt 0:04:21]} Re7 {[%emt 0:00:54]} 31. Qg4 {[%emt 0:05:15]} Qb7 {[%emt 0:02:51]} 32. Bxe8 {[%emt 0:01:32]} Rexe8 {[%emt 0:01:41]} 33. h5 {[%emt 0:03:16]} Qf7 {[%emt 0:02:45]} 34. g6 {[%emt 0:04:46]} Qg8 {[%emt 0:00:22]} 35. gxh7 {[%emt 0:00:07]} Qxh7 {[%emt 0:00:28]} 36. Qxg7+ {[%emt 0:00:06]} Qxg7 {[%emt 0:00:04]} 37. Rxg7 {[%emt 0:00:06]} Rg8 {[%emt 0:02:05]} 38. R7g6 {[%emt 0:05:12]} Rxg6 {[%emt 0:00:39]} 39. hxg6 {[%emt 0:00:07]} Kg7 {[%emt 0:00:31]} 40. Kg2 {[%emt 0:00:00]} Rh8 {[%emt 0:00:00]} 41. Rh1 {[%emt 0:02:27]} Rxh1 {[%emt 0:03:26]} 42. Kxh1 {[%emt 0:00:06]} a5 {[%emt 0:00:10]} 43. Kg2 {[%emt 0:00:09]} a4 {[%emt 0:00:22]} 44. Kf3 {[%emt 0:00:10]} Bd7 {[%emt 0:01:13]} 45. Ke3 {[%emt 0:00:27]} Bc6 {[%emt 0:00:13]} 46. Kd3 {[%emt 0:00:29]} Be8 {[%emt 0:00:54]} 47. Nd5 {[%emt 0:01:56]} b5 {[%emt 0:00:12]} 48. Nc7 {[%emt 0:00:13]} bxc4+ {[%emt 0:00:14]} 49. Kxc4 {[%emt 0:00:08]} Bc6 {[%emt 0:00:18]} 50. Nd5 {[%emt 0:00:44]} Bb7 {[%emt 0:00:30]} 51. Nc3 {[%emt 0:00:15]} Bc6 {[%emt 0:00:25]} 52. Kb4 {[%emt 0:00:40]} Kf8 {[%emt 0:00:23]} 53. b3 {[%emt 0:00:44]} axb3 {[%emt 0:00:24]} 54. Kxb3 {[%emt 0:00:06]} Be8 {[%emt 0:00:34]} 55. a4 {[%emt 0:00:15]} Bc6 {[%emt 0:00:38]} 56. a5 {[%emt 0:00:07]} Bb7 {[%emt 0:00:39]} 57. Kb4 {[%emt 0:00:44]} Ba6 {[%emt 0:00:09]} 58. Nb5 {[%emt 0:01:08]} Ke7 {[%emt 0:01:09]} 59. Nxd6 {[%emt 0:00:15]} 1-0

[Event "FIDE WYCC Girls U18 2023"]
[Site "Montesilvano"]
[Date "2023.11.24"]
[Round "11.26"]
[White "Ajradinoska, Indzi"]
[Black "Graziani, Emma"]
[Result "1/2-1/2"]
[ECO "A60"]
[WhiteElo "1594"]
[BlackElo "1783"]
[Annotator "NA RC"]
[PlyCount "54"]
[EventDate "2023.11.13"]
[EventType "swiss"]
[EventCountry "ITA"]
[SourceTitle "playchess.com"]
[Source "ChessBase"]
[SourceQuality "1"]
[TimeControl "40/5400+30:1800+30"]

1. d4 {[%emt 0:00:27]} c5 {[%emt 0:00:26]} 2. d5 {[%emt 0:00:15]} Nf6 {[%emt 0:00:06]} 3. c4 {[%emt 0:00:07]} e6 {[%emt 0:00:07]} 4. Nc3 {[%emt 0:00:16]} exd5 {[%emt 0:00:05]} 5. Nxd5 {[%emt 0:00:46]} d6 {[%emt 0:02:47]} 6. Nf3 {[%emt 0:00:53]} Nxd5 {[%emt 0:03:17]} 7. Qxd5 {[%emt 0:00:09]} Be7 {[%emt 0:03:34]} 8. g3 {[%emt 0:03:48]} Nc6 {[%emt 0:00:45]} 9. Bg2 {[%emt 0:01:09]} Be6 {[%emt 0:00:32]} 10. Qd3 {[%emt 0:01:12]} d5 {[%emt 0:02:31]} 11. cxd5 {[%emt 0:02:28]} Bxd5 {[%emt 0:01:17]} 12. O-O {[%emt 0:00:58]} O-O {[%emt 0:01:09]} 13. Be3 {[%emt 0:05:59]} Nb4 {[%emt 0:03:05]} 14. Qb1 {[%emt 0:00:51]} f5 {[%emt 0:10:01]} 15. Rd1 {[%emt 0:03:31]} Qc8 {[%emt 0:04:24]} 16. Ne5 {[%emt 0:07:09]} Bxg2 {[%emt 0:00:16]} 17. Kxg2 {[%emt 0:00:02]} b6 {[%emt 0:04:34]} 18. a3 {[%emt 0:02:29]} Qb7+ {[%emt 0:08:37]} 19. Kg1 {[%emt 0:01:13]} Nd5 {[%emt 0:00:32]} 20. Qa2 {[%emt 0:00:08]} Rad8 {[%emt 0:00:44]} 21. Rd3 {[%emt 0:00:18]} Rd6 {[%emt 0:09:49]} 22. Rad1 {[%emt 0:02:12]} Rfd8 {[%emt 0:00:31]} 23. Nc4 {[%emt 0:02:49]} R6d7 {[%emt 0:00:21]} 24. Ne5 {[%emt 0:02:28]} Rd6 {[%emt 0:00:06]} 25. Nc4 {[%emt 0:04:45]} R6d7 {[%emt 0:00:07]} 26. Ne5 {[%emt 0:01:58]} Rd6 {[%emt 0:00:06]} 27. Nc4 {[%emt 0:00:06]} R6d7 {[%emt 0:00:06]} 1/2-1/2

[Event "FIDE WYCC Girls U18 2023"]
[Site "Montesilvano"]
[Date "2023.11.24"]
[Round "11.27"]
[White "Changkachith, Alyssa"]
[Black "Soares, Sara Joana De Moura "]
[Result "0-1"]
[ECO "C01"]
[WhiteElo "1147"]
[BlackElo "1772"]
[Annotator "NA"]
[PlyCount "160"]
[EventDate "2023.11.13"]
[EventType "swiss"]
[EventCountry "ITA"]
[SourceTitle "playchess.com"]
[Source "ChessBase"]
[SourceQuality "1"]
[TimeControl "40/5400+30:1800+30"]

1. e4 {[%emt 0:00:03]} e6 {[%emt 0:00:17]} 2. d4 {[%emt 0:00:22]} d5 {[%emt 0:00:14]} 3. exd5 {[%emt 0:00:25]} exd5 {[%emt 0:00:08]} 4. Bf4 {[%emt 0:00:29]} Bd6 {[%emt 0:00:31]} 5. Bxd6 {[%emt 0:00:14]} Qxd6 {[%emt 0:00:01]} 6. c3 {[%emt 0:00:28]} Bf5 {[%emt 0:01:13]} 7. Bd3 {[%emt 0:03:11]} Bxd3 {[%emt 0:02:04]} 8. Qxd3 {[%emt 0:00:02]} Nc6 {[%emt 0:00:44]} 9. Na3 {[%emt 0:02:23]} Nge7 {[%emt 0:00:44]} 10. Nf3 {[%emt 0:01:18]} f6 {[%emt 0:01:19]} 11. Nc2 {[%emt 0:02:07]} Ng6 {[%emt 0:02:36]} 12. Qe2+ {[%emt 0:04:50]} Nge7 {[%emt 0:04:21]} 13. Nd2 {[%emt 0:11:36]} Qd7 {[%emt 0:06:03]} 14. Nb3 {[%emt 0:06:26]} b6 {[%emt 0:03:06]} 15. O-O {[%emt 0:08:22]} O-O {[%emt 0:05:45]} 16. Rfe1 {[%emt 0:01:40]} Ng6 {[%emt 0:06:18]} 17. Qe6+ {[%emt 0:04:26]} Qxe6 {[%emt 0:00:21]} 18. Rxe6 {[%emt 0:00:01]} Nd8 {[%emt 0:00:21]} 19. Re3 {[%emt 0:00:19]} Nf7 {[%emt 0:00:38]} 20. Nb4 {[%emt 0:00:51]} Rfd8 {[%emt 0:02:57]} 21. Rae1 {[%emt 0:02:34]} Rd6 {[%emt 0:38:38]} 22. Re8+ {[%emt 0:07:24]} Rxe8 {[%emt 0:00:19]} 23. Rxe8+ {[%emt 0:00:01]} Nf8 {[%emt 0:00:08]} 24. Re7 {[%emt 0:00:44]} a5 {[%emt 0:03:27]} 25. Na6 {[%emt 0:03:04]} Re6 {[%emt 0:01:04]} 26. Rxe6 {[%emt 0:04:23]} Nxe6 {[%emt 0:00:02]} 27. Kf1 {[%emt 0:00:22]} Kf8 {[%emt 0:00:26]} 28. Ke2 {[%emt 0:00:48]} Ke7 {[%emt 0:01:57]} 29. g3 {[%emt 0:02:48]} Nfd8 {[%emt 0:01:33]} 30. Nd2 {[%emt 0:03:18]} Kd7 {[%emt 0:00:54]} 31. b4 {[%emt 0:00:52]} Kc6 {[%emt 0:06:00]} 32. a4 {[%emt 0:01:21]} Kb7 {[%emt 0:00:06]} 33. b5 {[%emt 0:00:20]} Nf7 {[%emt 0:00:19]} 34. Nf1 {[%emt 0:00:41]} c6 {[%emt 0:02:41]} 35. Ne3 {[%emt 0:00:37]} cxb5 {[%emt 0:02:37]} 36. axb5 {[%emt 0:00:05]} Nd6 {[%emt 0:00:04]} 37. Nxd5 {[%emt 0:09:49]} Nxb5 {[%emt 0:00:30]} 38. Nb8 {[%emt 0:00:13]} Kxb8 {[%emt 0:00:24]} 39. Nxb6 {[%emt 0:00:08]} Nxc3+ {[%emt 0:01:50]} 40. Kd3 {[%emt 0:00:00]} Nb5 {[%emt 0:00:00]} 41. d5 {[%emt 0:00:59]} Nd8 {[%emt 0:02:35]} 42. Kc4 {[%emt 0:00:35]} Nd6+ {[%emt 0:04:25]} 43. Kd4 {[%emt 0:02:31]} Kc7 {[%emt 0:00:45]} 44. Na4 {[%emt 0:00:25]} N8f7 {[%emt 0:01:27]} 45. f4 {[%emt 0:00:55]} Nf5+ {[%emt 0:02:36]} 46. Kc5 {[%emt 0:01:54]} N7d6 {[%emt 0:00:57]} 47. Nb6 {[%emt 0:01:06]} Nc8 {[%emt 0:05:33]} 48. Na4 {[%emt 0:03:47]} Nfd6 {[%emt 0:00:12]} 49. g4 {[%emt 0:02:15]} Nb7+ {[%emt 0:00:06]} 50. Kd4 {[%emt 0:00:56]} Nb6 {[%emt 0:00:18]} 51. Nc3 {[%emt 0:02:23]} a4 {[%emt 0:00:40]} 52. Nb1 {[%emt 0:00:05]} Na5 {[%emt 0:01:33]} 53. Na3 {[%emt 0:00:12]} Nb3+ {[%emt 0:00:17]} 54. Ke4 {[%emt 0:00:32]} Nd2+ {[%emt 0:00:11]} 55. Kd4 {[%emt 0:03:38]} Ndc4 {[%emt 0:02:48]} 56. Nb5+ {[%emt 0:04:17]} Kd7 {[%emt 0:00:12]} 57. Kc5 {[%emt 0:00:14]} a3 {[%emt 0:00:16]} 58. Nc3 {[%emt 0:00:32]} Na4+ {[%emt 0:02:39]} 59. Kxc4 {[%emt 0:00:22]} Nxc3 {[%emt 0:00:01]} 60. Kxc3 {[%emt 0:00:02]} Kd6 {[%emt 0:00:10]} 61. g5 {[%emt 0:09:23]} Kxd5 {[%emt 0:00:01]} 62. Kb3 {[%emt 0:01:27]} Ke4 {[%emt 0:00:18]} 63. Kxa3 {[%emt 0:00:06]} Kxf4 {[%emt 0:00:01]} 64. gxf6 {[%emt 0:00:02]} gxf6 {[%emt 0:00:51]} 65. Kb3 {[%emt 0:00:02]} Ke3 {[%emt 0:00:05]} 66. Kc2 {[%emt 0:00:23]} Ke2 {[%emt 0:00:10]} 67. Kc3 {[%emt 0:00:56]} f5 {[%emt 0:00:00]} 68. Kd4 {[%emt 0:00:02]} f4 {[%emt 0:00:14]} 69. Ke5 {[%emt 0:01:20]} f3 {[%emt 0:00:01]} 70. Kf6 {[%emt 0:00:02]} f2 {[%emt 0:00:12]} 71. h4 {[%emt 0:00:25]} f1=Q+ {[%emt 0:00:10]} 72. Kg5 {[%emt 0:00:05]} Qg2+ {[%emt 0:00:33]} 73. Kf4 {[%emt 0:00:17]} h5 {[%emt 0:00:15]} 74. Kf5 {[%emt 0:00:25]} Qg4+ {[%emt 0:00:02]} 75. Kf6 {[%emt 0:00:02]} Qxh4+ {[%emt 0:00:21]} 76. Kg6 {[%emt 0:00:13]} Qg4+ {[%emt 0:00:07]} 77. Kh7 {[%emt 0:00:08]} h4 {[%emt 0:00:13]} 78. Kh8 {[%emt 0:01:15]} h3 {[%emt 0:00:05]} 79. Kh7 {[%emt 0:00:04]} h2 {[%emt 0:00:05]} 80. Kh8 {[%emt 0:00:05]} h1=Q# {[%emt 0:00:08]} 0-1

[Event "FIDE WYCC Girls U18 2023"]
[Site "Montesilvano"]
[Date "2023.11.24"]
[Round "11.28"]
[White "Mohd Azman, Farihah Nur Aisyah"]
[Black "Belattar, Ines"]
[Result "1/2-1/2"]
[ECO "D02"]
[WhiteElo "1379"]
[BlackElo "1623"]
[Annotator "NA"]
[PlyCount "80"]
[EventDate "2023.11.13"]
[EventType "swiss"]
[EventCountry "ITA"]
[SourceTitle "playchess.com"]
[Source "ChessBase"]
[SourceQuality "1"]
[TimeControl "40/5400+30:1800+30"]

1. d4 {[%emt 0:00:03]} Nf6 {[%emt 0:01:13]} 2. Nf3 {[%emt 0:00:08]} d5 {[%emt 0:00:15]} 3. Bf4 {[%emt 0:00:17]} c5 {[%emt 0:00:07]} 4. c3 {[%emt 0:00:24]} Nc6 {[%emt 0:00:22]} 5. e3 {[%emt 0:00:32]} Qb6 {[%emt 0:00:43]} 6. Qb3 {[%emt 0:00:31]} c4 {[%emt 0:03:56]} 7. Qc2 {[%emt 0:00:32]} Bf5 {[%emt 0:00:53]} 8. Qc1 {[%emt 0:00:09]} e6 {[%emt 0:01:35]} 9. Nbd2 {[%emt 0:00:25]} Rc8 {[%emt 0:10:22]} 10. Be2 {[%emt 0:05:44]} Nh5 {[%emt 0:03:09]} 11. Bg3 {[%emt 0:01:49]} Nxg3 {[%emt 0:06:08]} 12. hxg3 {[%emt 0:00:05]} h6 {[%emt 0:00:31]} 13. Bd1 {[%emt 0:04:54]} Bd6 {[%emt 0:11:47]} 14. Bc2 {[%emt 0:01:10]} Bxc2 {[%emt 0:21:37]} 15. Qxc2 {[%emt 0:00:05]} Qd8 {[%emt 0:02:21]} 16. e4 {[%emt 0:08:23]} O-O {[%emt 0:05:54]} 17. O-O {[%emt 0:14:52]} b5 {[%emt 0:06:53]} 18. Rfe1 {[%emt 0:04:58]} b4 {[%emt 0:02:55]} 19. Nf1 {[%emt 0:04:32]} bxc3 {[%emt 0:03:39]} 20. bxc3 {[%emt 0:00:10]} Rb8 {[%emt 0:05:20]} 21. Rab1 {[%emt 0:05:35]} Qa5 {[%emt 0:03:46]} 22. Ne3 {[%emt 0:03:44]} Ne7 {[%emt 0:04:41]} 23. Nd2 {[%emt 0:11:32]} Qa3 {[%emt 0:01:55]} 24. Rec1 {[%emt 0:02:30]} Bc7 {[%emt 0:00:26]} 25. Kh2 {[%emt 0:01:52]} Rb6 {[%emt 0:01:17]} 26. Rxb6 {[%emt 0:00:46]} axb6 {[%emt 0:00:10]} 27. Nb1 {[%emt 0:10:50]} Qa6 {[%emt 0:00:29]} 28. e5 {[%emt 0:01:22]} b5 {[%emt 0:00:20]} 29. Qb2 {[%emt 0:03:41]} Ra8 {[%emt 0:00:36]} 30. a3 {[%emt 0:00:46]} Nc6 {[%emt 0:00:16]} 31. Nc2 {[%emt 0:00:32]} Qa4 {[%emt 0:01:21]} 32. Nd2 {[%emt 0:00:24]} Na5 {[%emt 0:00:35]} 33. Rb1 {[%emt 0:00:34]} Rb8 {[%emt 0:00:33]} 34. Ne3 {[%emt 0:00:42]} Bd8 {[%emt 0:00:27]} 35. Nc2 {[%emt 0:01:28]} Be7 {[%emt 0:00:06]} 36. Nb4 {[%emt 0:00:47]} Ra8 {[%emt 0:00:22]} 37. Nc2 {[%emt 0:00:24]} Nc6 {[%emt 0:00:30]} 38. Ra1 {[%emt 0:01:33]} Qa6 {[%emt 0:00:38]} 39. Nb1 {[%emt 0:02:01]} Qb6 {[%emt 0:00:23]} 40. Nd2 {[%emt 0:00:00]} Ra5 {[%emt 0:00:00]} 1/2-1/2

[Event "FIDE WYCC Girls U18 2023"]
[Site "Montesilvano"]
[Date "2023.11.24"]
[Round "11.29"]
[White "Zubova, Darja"]
[Black "Sipos, Stefania"]
[Result "0-1"]
[ECO "C78"]
[WhiteElo "1582"]
[BlackElo "1932"]
[Annotator "NA RC"]
[PlyCount "100"]
[EventDate "2023.11.13"]
[EventType "swiss"]
[EventCountry "ITA"]
[SourceTitle "playchess.com"]
[Source "ChessBase"]
[SourceQuality "1"]
[TimeControl "40/5400+30:1800+30"]

1. e4 {[%emt 0:00:03]} e5 {[%emt 0:00:06]} 2. Nf3 {[%emt 0:00:07]} Nc6 {[%emt 0:00:06]} 3. Bb5 {[%emt 0:00:11]} a6 {[%emt 0:00:13]} 4. Ba4 {[%emt 0:00:08]} Nf6 {[%emt 0:00:15]} 5. O-O {[%emt 0:00:24]} b5 {[%emt 0:00:18]} 6. Bb3 {[%emt 0:00:11]} Bc5 {[%emt 0:00:13]} 7. c3 {[%emt 0:02:14]} d6 {[%emt 0:00:26]} 8. d4 {[%emt 0:01:16]} Bb6 {[%emt 0:00:20]} 9. h3 {[%emt 0:05:01]} Bb7 {[%emt 0:02:00]} 10. Re1 {[%emt 0:01:30]} h6 {[%emt 0:06:57]} 11. Na3 {[%emt 0:13:13]} O-O {[%emt 0:01:41]} 12. Nc2 {[%emt 0:01:07]} Re8 {[%emt 0:04:55]} 13. Qd3 {[%emt 0:03:21]} exd4 {[%emt 0:03:40]} 14. cxd4 {[%emt 0:00:43]} Na5 {[%emt 0:03:33]} 15. Nd2 {[%emt 0:04:04]} Nxb3 {[%emt 0:02:30]} 16. axb3 {[%emt 0:00:41]} Re7 {[%emt 0:15:44]} 17. f3 {[%emt 0:07:44]} Rd7 {[%emt 0:08:53]} 18. Ne3 {[%emt 0:01:49]} Nh5 {[%emt 0:02:29]} 19. Ndf1 {[%emt 0:02:57]} Qf6 {[%emt 0:07:19]} 20. Nf5 {[%emt 0:01:52]} Qg6 {[%emt 0:05:02]} 21. Be3 {[%emt 0:05:08]} Rad8 {[%emt 0:04:16]} 22. Nh4 {[%emt 0:05:21]} Qe6 {[%emt 0:02:42]} 23. Nf5 {[%emt 0:01:34]} Nf6 {[%emt 0:05:06]} 24. d5 {[%emt 0:04:07]} Bxe3+ {[%emt 0:00:25]} 25. Qxe3 {[%emt 0:00:05]} Nxd5 {[%emt 0:07:04]} 26. Qa7 {[%emt 0:06:08]} c5 {[%emt 0:02:11]} 27. Nxh6+ {[%emt 0:06:23]} gxh6 {[%emt 0:03:03]} 28. exd5 {[%emt 0:01:04]} Qxd5 {[%emt 0:00:09]} 29. Re3 {[%emt 0:05:32]} Qc6 {[%emt 0:04:06]} 30. Rae1 {[%emt 0:00:51]} Ba8 {[%emt 0:04:12]} 31. Re8+ {[%emt 0:00:40]} Kg7 {[%emt 0:00:06]} 32. Rxd8 {[%emt 0:00:34]} Rxa7 {[%emt 0:00:18]} 33. Ree8 {[%emt 0:00:10]} Qd5 {[%emt 0:03:02]} 34. Ng3 {[%emt 0:01:18]} Bc6 {[%emt 0:02:27]} 35. Rg8+ {[%emt 0:03:21]} Kf6 {[%emt 0:00:09]} 36. Ne4+ {[%emt 0:01:24]} Ke5 {[%emt 0:00:36]} 37. Rxd6 {[%emt 0:02:51]} Qxd6 {[%emt 0:00:44]} 38. Nxd6 {[%emt 0:00:02]} Kxd6 {[%emt 0:00:07]} 39. Rh8 {[%emt 0:00:09]} Ke7 {[%emt 0:01:16]} 40. Rxh6 {[%emt 0:00:00]} Bd5 {[%emt 0:00:00]} 41. Rh5 {[%emt 0:00:46]} Kd6 {[%emt 0:01:58]} 42. b4 {[%emt 0:02:16]} cxb4 {[%emt 0:01:07]} 43. h4 {[%emt 0:01:06]} a5 {[%emt 0:01:34]} 44. Rh8 {[%emt 0:02:32]} Ra8 {[%emt 0:04:19]} 45. Rh6+ {[%emt 0:00:12]} Kc5 {[%emt 0:00:49]} 46. h5 {[%emt 0:00:42]} a4 {[%emt 0:00:59]} 47. g4 {[%emt 0:08:25]} a3 {[%emt 0:02:09]} 48. bxa3 {[%emt 0:00:14]} bxa3 {[%emt 0:00:21]} 49. Rf6 {[%emt 0:00:38]} a2 {[%emt 0:00:31]} 50. Rf5 {[%emt 0:00:17]} a1=Q+ {[%emt 0:00:08]} 0-1